bitfinex/quotes_ETHUSD_20260310
["timestamp","ask_amount","ask_price","bid_price","bid_amount"]
[1773147839027,0.001,2053.3,2053.2,1.21761153]
[1773147839617,0.001,2053.5,2053.3,0.36790886]
[1773147839818,0.51925748,2053.5,2053.1,3.07833699]
[1773147841738,0.51825748,2053.4,2053.1,0.0011]
[1773147841921,0.51825748,2053.2,2052.9,0.0011]
[1773147842253,0.51825748,2053.0,2052.5,0.0011]
[1773147843057,1.73604694,2052.9,2052.5,0.0011]
[1773147845455,0.51825748,2052.9,2052.5,0.0011]
[1773147845655,0.51825748,2052.9,2052.5,0.04982107]
[1773147846270,1.73605386,2052.9,2052.5,0.0011]
[1773147847324,0.51825748,2052.9,2052.5,1.21912679]
[1773147847904,1.73604811,2052.9,2052.5,1.21912679]
[1773147848414,0.56478522,2052.8,2052.5,0.0011]
[1773147849620,1.78269334,2052.7,2052.5,0.0011]
[1773147852016,1.78369334,2052.7,2052.5,0.0011]
[1773147852418,0.56578522,2052.7,2052.5,0.0011]
[1773147853216,0.001,2052.7,2052.5,0.0011]
[1773147853519,1.78248761,2053.1,2052.5,0.36989808]
[1773147853818,0.56478522,2053.3,2052.5,0.36989808]
[1773147854026,1.21754667,2053.4,2052.5,0.36989808]
[1773147854027,0.56578522,2053.5,2052.9,0.28422433]
[1773147855693,0.001,2053.5,2052.9,0.28422433]
[1773147856201,0.001,2053.5,2053.0,1.50189326]
[1773147856416,0.56578522,2053.5,2053.0,1.50189326]
[1773147858396,1.7832276,2053.5,2053.0,1.50189326]
[1773147858723,0.56478522,2053.4,2053.0,1.21773015]
[1773147859100,0.001,2053.5,2053.1,0.28407726]
[1773147859711,1.21843451,2053.5,2053.1,0.28407726]
[1773147860094,1.78321973,2053.5,2053.1,0.28407726]
[1773147860298,1.78321973,2053.5,2053.0,1.21773015]
[1773147860699,0.56578522,2053.5,2053.0,1.50175618]
[1773147861228,1.78321911,2053.5,2053.0,1.50175618]
[1773147861625,0.56578522,2053.5,2053.1,0.2839967]
[1773147862002,0.001,2053.5,2053.1,0.2839967]
[1773147862407,1.21845568,2053.5,2053.0,1.21773015]
[1773147862607,0.56478522,2053.4,2053.0,2.66073015]
[1773147863019,0.56478522,2053.4,2053.0,1.21773015]
[1773147863426,0.56478522,2053.4,2053.0,2.66073015]
[1773147863828,0.56478522,2053.4,2053.0,1.21773015]
[1773147864134,0.001,2053.3,2053.0,2.94467323]
[1773147866137,0.001,2053.5,2053.1,0.04870683]
[1773147866338,0.001,2053.5,2053.2,0.28289234]
[1773147867215,0.001,2053.5,2053.3,1.21755223]
[1773147867414,0.001,2053.5,2053.3,1.54909497]
[1773147867719,0.001,2053.5,2053.3,1.26625431]
[1773147870313,0.001,2053.5,2053.3,1.54902652]
[1773147871808,0.001,2053.5,2053.3,1.50032444]
[1773147873713,0.51583131,2054.3,2053.5,0.2816831]
[1773147873912,0.51583131,2054.3,2053.6,1.7286831]
[1773147874109,0.51583131,2054.3,2053.3,1.49923533]
[1773147874110,0.51583131,2054.0,2053.3,1.49923533]
[1773147874344,1.21719655,2053.9,2053.5,1.21743364]
[1773147874641,0.51583131,2053.8,2053.2,2.66461153]
[1773147875135,0.51583131,2053.8,2053.3,0.04870208]
[1773147875510,0.51583131,2053.8,2053.2,1.21761153]
[1773147876011,0.51583131,2053.8,2053.3,0.04870208]
[1773147876445,1.7331084,2053.8,2053.5,0.0011]
[1773147876622,0.51583131,2053.7,2053.5,0.0011]
[1773147879728,0.51583131,2053.9,2053.5,0.0011]
[1773147880119,0.51583131,2053.9,2053.5,0.33135845]
[1773147880321,0.51583131,2053.9,2053.5,0.28266111]
[1773147880842,0.51583131,2053.9,2053.5,1.21848437]
[1773147882354,0.51583131,2053.6,2053.3,1.21862526]
[1773147882526,0.51583131,2053.4,2053.2,1.21761045]
[1773147883429,0.51583131,2053.4,2053.0,1.21878063]
[1773147885364,0.51583131,2053.4,2053.0,0.0011]
[1773147885659,0.51583131,2053.3,2053.0,0.0011]
[1773147887468,0.5440804,2053.2,2053.0,0.0011]
[1773147888334,0.5440804,2053.2,2052.9,0.0011]
[1773147888534,0.5440804,2053.0,2052.6,1.21906024]
[1773147889363,0.5440804,2053.0,2052.6,0.0011]
[1773147889535,0.5440804,2052.8,2052.6,0.0011]
[1773147890271,0.5440804,2052.8,2052.7,0.0011]
[1773147891569,0.5440804,2052.7,2052.6,0.0011]
[1773147891800,0.5440804,2052.6,2052.4,0.0011]
[1773147893677,1.49335442,2052.5,2052.2,0.0011]
[1773147893851,1.49335442,2052.5,2052.2,1.21930348]
[1773147894052,0.5440804,2052.5,2052.2,1.21930348]
[1773147895367,0.5440804,2052.5,2052.2,1.26803167]
[1773147895860,0.5440804,2052.5,2052.2,1.21930348]
[1773147896950,0.5440804,2052.5,2052.2,0.0011]
[1773147897376,0.5440804,2052.5,2052.2,1.2193038]
[1773147898882,0.5440804,2052.5,2052.2,0.0011]
[1773147899678,0.5440804,2052.6,2052.2,0.28346267]
[1773147899882,0.5440804,2052.9,2052.4,0.51512347]
[1773147900061,0.5440804,2053.1,2052.5,0.56384454]
[1773147900263,1.21859307,2053.3,2052.7,0.51512347]
[1773147900264,1.65530162,2053.3,2052.7,0.51512347]
[1773147900464,0.43773527,2053.3,2052.7,0.51512347]
[1773147900779,1.65528949,2053.3,2052.7,0.51512347]
[1773147900976,1.65528954,2053.3,2052.7,0.51512347]
[1773147901761,1.65528954,2053.3,2052.9,0.51512347]
[1773147901966,0.43790853,2053.2,2052.8,1.21784879]
[1773147902359,0.43790853,2053.2,2052.5,1.73315026]
[1773147902579,0.43906535,2053.0,2052.5,1.73315026]
[1773147902780,2.37350272,2053.1,2052.5,1.73315026]
[1773147902781,0.43906535,2053.2,2052.6,0.51512347]
[1773147904180,0.44133259,2053.0,2052.6,1.73308474]
[1773147904785,0.44133259,2053.0,2052.4,0.5465888]
[1773147905082,0.44244869,2052.6,2052.2,1.21928533]
[1773147906474,0.44244869,2052.6,2052.2,0.5465888]
[1773147906674,1.66258305,2052.7,2052.2,0.5465888]
[1773147907074,0.44465026,2052.7,2052.2,0.5465888]
[1773147907289,3.95750272,2053.2,2052.2,0.5465888]
[1773147907290,0.44573205,2052.9,2052.2,0.5465888]
[1773147907584,0.44573205,2053.1,2052.4,0.5454888]
[1773147907758,0.44573205,2053.1,2052.6,0.5454888]
[1773147909673,0.44785678,2053.0,2052.6,1.2179554]
[1773147910076,4.87063639,2053.2,2052.6,1.2179554]
[1773147910077,1.21764986,2053.2,2052.6,1.7634442]
[1773147910279,1.66550664,2053.2,2052.6,1.7634442]
[1773147910588,0.44890238,2053.1,2052.6,1.7634442]
[1773147910785,0.44890238,2053.1,2052.7,0.5454888]
[1773147911772,1.66659207,2053.1,2052.7,0.5454888]
[1773147912293,0.44890238,2053.1,2052.7,1.76334874]
[1773147913087,1.66954782,2053.3,2052.7,1.21785994]
[1773147913288,1.66954782,2053.3,2052.8,0.5454888]
[1773147913602,0.45195102,2053.2,2052.8,0.5454888]
[1773147913800,0.45195102,2053.2,2052.6,0.5454888]
[1773147913996,1.66962185,2053.1,2052.6,1.76452538]
[1773147914306,0.001,2053.3,2052.8,0.5454888]
[1773147914611,4.21474823,2053.9,2052.8,0.5454888]
[1773147914903,4.86808454,2054.2,2053.3,0.5454888]
[1773147914904,0.45394307,2054.2,2053.3,0.5454888]
[1773147915201,0.45394307,2054.0,2053.3,0.5454888]
[1773147915494,0.45492368,2054.2,2053.3,0.5454888]
[1773147915994,1.67197532,2054.2,2053.4,1.21749293]
[1773147916298,1.67197532,2054.2,2053.5,0.5454888]
[1773147916995,1.67197532,2054.2,2053.3,1.76299469]
[1773147916996,0.45589302,2054.0,2053.3,1.76299469]
[1773147917186,0.45589302,2054.0,2053.4,0.5454888]
[1773147918080,1.21719655,2053.9,2053.4,0.5454888]
[1773147918440,1.21719655,2053.9,2053.4,1.76297564]
[1773147919400,1.67568388,2054.3,2053.5,0.5454888]
[1773147919703,0.45872434,2054.2,2053.5,0.5454888]
[1773147919997,1.67575311,2054.2,2053.7,0.5454888]
[1773147920796,1.67659443,2054.4,2053.7,0.5454888]
[1773147921098,0.45964655,2054.3,2053.7,0.5454888]
[1773147922186,1.21701879,2054.2,2053.7,1.76279179]
[1773147922606,1.67662901,2054.3,2053.8,0.5454888]
[1773147923310,0.46146908,2054.2,2053.6,1.76282417]
[1773147923506,0.46146908,2054.2,2053.6,0.5454888]
[1773147923910,0.46146908,2054.2,2053.6,1.76285441]
[1773147924614,1.21707803,2054.1,2053.7,0.5454888]
[1773147924915,1.21707803,2054.1,2052.7,0.5454888]
[1773147924916,0.46324298,2053.7,2052.7,0.5454888]
[1773147925080,0.46324298,2053.4,2052.7,0.5454888]
[1773147926110,0.46324298,2053.4,2052.6,0.0011]
[1773147926300,0.46498673,2053.3,2052.6,0.0011]
[1773147926707,1.68259826,2053.2,2052.6,0.5465888]
[1773147927010,1.68259826,2053.2,2053.0,0.0011]
[1773147927312,0.46498673,2053.2,2053.0,0.0011]
[1773147927610,0.46584275,2053.4,2053.0,0.0011]
[1773147927808,1.68325564,2053.6,2053.0,0.5465888]
[1773147928814,1.68325564,2053.6,2053.0,1.76426294]
[1773147929116,1.68325564,2053.6,2053.1,0.5454888]
[1773147929117,1.68321934,2053.6,2053.1,0.5454888]
[1773147929303,0.46584275,2053.6,2053.1,0.5454888]
[1773147929505,1.21736271,2053.7,2053.1,0.5454888]
[1773147930193,0.001,2054.0,2053.1,0.5454888]
[1773147930392,0.4693478,2054.0,2053.1,0.5454888]
[1773147930613,1.68648885,2054.0,2053.1,0.5454888]
[1773147931182,1.68648885,2054.0,2053.4,0.5454888]
[1773147931183,0.4693478,2054.0,2053.4,0.5454888]
[1773147931387,1.21814101,2054.0,2053.4,0.5454888]
[1773147931885,0.001,2054.0,2053.5,0.59418614]
[1773147933492,0.001,2054.0,2053.6,1.21737436]
[1773147933641,0.001,2054.0,2053.7,0.53438158]
[1773147935173,0.001,2054.0,2053.5,0.53438158]
[1773147935174,0.47333019,2054.0,2053.5,0.53438158]
[1773147935451,0.47333019,2054.0,2053.5,1.80051145]
[1773147935812,0.001,2054.0,2053.6,0.53438158]
[1773147937827,0.001,2054.0,2053.8,0.53438158]
[1773147938561,1.2169552,2054.4,2053.8,0.53438158]
[1773147938716,0.47535886,2054.5,2053.8,0.53438158]
[1773147938919,5.34235832,2054.7,2053.8,0.53438158]
[1773147939281,0.47535886,2054.4,2053.8,0.53438158]
[1773147939554,0.47609486,2054.6,2053.8,0.53438158]
[1773147940060,1.21684108,2054.5,2054.0,0.53438158]
[1773147940433,1.69365961,2054.5,2054.0,0.53438158]
[1773147941036,5.195536,2055.4,2054.2,0.53438158]
[1773147941037,1.21642662,2055.2,2054.2,0.53438158]
[1773147941191,0.47681853,2055.0,2054.2,0.53438158]
[1773147941349,0.47681853,2055.0,2053.9,1.21719655]
[1773147941350,2.85103946,2054.5,2053.9,0.53438158]
[1773147941684,0.47753674,2054.4,2053.5,0.53548158]
[1773147941868,1.21713729,2054.0,2053.5,0.53548158]
[1773147942440,1.69537994,2054.0,2053.5,0.53548158]
[1773147943345,0.47894535,2053.9,2053.5,0.0011]
[1773147943983,1.21725581,2053.8,2053.5,0.0011]
[1773147944178,1.21725581,2053.8,2053.1,0.53438158]
[1773147944179,0.56258502,2053.7,2053.1,0.53438158]
[1773147944475,0.56258502,2053.7,2053.0,1.75320967]
[1773147944669,1.21725581,2053.8,2053.1,0.58308841]
[1773147944871,1.21725581,2053.8,2053.1,0.53438158]
[1773147945076,1.77984083,2053.8,2053.1,0.53438158]
[1773147945452,1.77984083,2053.8,2053.0,0.0011]
[1773147945453,2.93608774,2053.7,2053.0,0.0011]
[1773147945665,0.56258502,2053.6,2053.0,0.0011]
[1773147945886,0.56258502,2053.6,2053.0,1.21882421]
[1773147946087,1.21743364,2053.5,2053.0,1.7560795]
[1773147946893,1.21743364,2053.5,2053.0,0.53835529]
[1773147947984,1.79761318,2053.5,2053.0,0.0011]
[1773147951093,1.79761318,2053.5,2052.7,1.75514724]
[1773147951094,0.58017954,2053.4,2052.7,1.75514724]
[1773147951259,0.58017954,2053.4,2052.8,0.53725529]
[1773147951459,1.21731508,2053.7,2053.2,0.0011]
[1773147951688,1.21731508,2053.7,2053.2,0.53835529]
[1773147951888,0.001,2053.3,2053.2,0.53835529]
[1773147952059,0.001,2053.3,2053.2,0.0011]
[1773147952260,0.001,2053.3,2053.0,0.0011]
[1773147952462,0.001,2053.3,2053.0,1.75607095]
[1773147952685,0.001,2053.3,2053.1,0.53725529]
[1773147954196,0.58017954,2054.0,2053.3,1.75480752]
[1773147954495,0.58017954,2054.0,2053.3,0.53725529]
[1773147954789,0.58017954,2053.8,2053.1,1.75491837]
[1773147955762,0.58017954,2053.8,2053.1,1.75491621]
[1773147958666,1.21731508,2053.7,2053.2,0.04870446]
[1773147959161,1.21731508,2053.7,2053.1,1.75491621]
[1773147959870,1.21731508,2053.7,2053.2,0.53725529]
[1773147960199,1.79749462,2053.7,2053.2,0.53725529]
[1773147961792,1.79749462,2053.7,2053.0,1.756077]
[1773147961793,0.58017954,2053.6,2053.0,1.756077]
[1773147962181,0.58017954,2053.6,2053.0,0.53835529]
[1773147962397,0.58017954,2053.6,2053.0,1.75607639]
[1773147962599,1.21733665,2053.7,2053.1,0.53725529]
[1773147963097,1.79751619,2053.7,2053.1,0.53725529]
[1773147964098,1.79751619,2053.7,2053.2,1.77574238]
[1773147964303,0.001,2053.5,2053.2,1.77574238]
[1773147964884,2.37348341,2054.4,2053.3,0.55703085]
[1773147965205,1.76575796,2054.6,2053.5,0.55703085]
[1773147965966,1.76579826,2054.6,2053.5,0.55703085]
[1773147966174,0.54896089,2054.5,2053.7,0.55703085]
[1773147967977,0.54896089,2054.4,2053.7,0.55703085]
[1773147968290,1.21695954,2054.3,2053.8,1.77428666]
[1773147969075,1.76592043,2054.3,2053.8,1.77428666]
[1773147969883,0.54896089,2054.5,2053.9,0.55703085]
[1773147970086,0.54896089,2054.3,2053.7,0.55703085]
[1773147970279,0.54896089,2054.3,2053.8,0.55703085]
[1773147970607,1.76584814,2054.5,2053.8,0.55703085]
[1773147970772,1.21682691,2054.6,2053.8,0.55703085]
[1773147971069,1.2167894,2054.6,2053.8,0.55703085]
[1773147971272,0.54896089,2054.5,2053.8,0.55703085]
[1773147971893,0.54896089,2054.6,2053.8,0.55703085]
[1773147972678,2.37348341,2054.9,2054.0,0.55703085]
[1773147972906,0.54896089,2054.9,2054.0,0.55703085]
[1773147974319,3.59006288,2055.0,2054.0,0.55703085]
[1773147974619,5.29163927,2055.4,2054.6,0.55703085]
[1773147974620,1.64178099,2055.4,2054.6,0.55703085]
[1773147974838,1.64178099,2055.4,2054.7,0.55703085]
[1773147975818,1.64178099,2055.4,2054.5,0.55703085]
[1773147976310,0.001,2055.2,2054.5,0.55703085]
[1773147976511,0.54896089,2056.1,2054.9,0.55703085]
[1773147976687,0.54896089,2055.9,2055.1,0.55703085]
[1773147978019,1.593,2056.0,2055.1,0.55703085]
[1773147978380,1.21587013,2056.2,2055.2,0.55703085]
[1773147978580,1.21582304,2056.3,2055.2,0.55703085]
[1773147978811,2.9224443,2056.2,2055.4,0.55703085]
[1773147979111,2.9224443,2056.2,2055.1,0.55703085]
[1773147979112,2.9224443,2055.9,2055.1,0.55703085]
[1773147979414,0.54896089,2055.9,2055.1,0.55703085]
[1773147979785,2.9224443,2056.2,2055.1,0.55703085]
[1773147980387,0.54896089,2056.1,2055.1,0.55703085]
[1773147980713,1.2159533,2056.0,2055.3,0.55703085]
[1773147980915,1.76491419,2056.0,2055.3,0.55703085]
[1773147981118,1.76491419,2056.0,2055.1,1.77351183]
[1773147981119,2.37348341,2055.7,2055.1,1.77351183]
[1773147981414,2.37348341,2055.7,2055.1,1.77350006]
[1773147981586,2.37348341,2055.7,2055.1,0.55703085]
[1773147981919,2.37348341,2055.7,2055.1,1.77350349]
[1773147982611,0.54896089,2055.9,2055.1,1.77350349]
[1773147982786,1.76502154,2055.9,2055.2,0.55703085]
[1773147983405,4.13850495,2055.9,2055.2,0.55703085]
[1773147983606,6.45759415,2056.1,2055.2,0.55703085]
[1773147983607,0.54896089,2056.1,2055.2,0.55703085]
[1773147984188,2.37348341,2056.2,2055.2,0.55703085]
[1773147984792,1.2159533,2056.0,2055.2,1.77343232]
[1773147984991,1.2159533,2056.0,2055.3,0.55703085]
[1773147985189,2.47984288,2055.8,2054.1,0.55703085]
[1773147985490,2.9224443,2055.3,2054.2,0.6057116]
[1773147985707,0.54896089,2055.3,2054.2,0.6057116]
[1773147986415,0.54896089,2055.3,2054.2,0.55703085]
[1773147986620,0.54896089,2055.2,2054.2,0.55703085]
[1773147986790,1.21648581,2055.1,2054.3,1.21695954]
[1773147986990,1.21648581,2055.1,2054.3,1.77399039]
[1773147987820,1.21648581,2055.1,2054.4,0.55703085]
[1773147988000,1.76542249,2055.2,2054.4,0.55703085]
[1773147988202,1.76539125,2055.2,2054.4,0.55803085]
[1773147988518,0.54896089,2055.2,2054.4,0.55803085]
[1773147988711,1.76539031,2055.2,2054.4,0.55803085]
[1773147988913,1.21634388,2055.4,2054.6,0.55703085]
[1773147989689,0.54896089,2055.3,2054.5,1.21684108]
[1773147990494,0.54896089,2055.3,2054.5,1.77387193]
[1773147990927,1.21642662,2055.2,2054.5,1.77387193]
[1773147991424,1.76538751,2055.2,2054.5,1.77384093]
[1773147992125,1.21642662,2055.2,2054.5,1.77384093]
[1773147992300,5.41466739,2055.4,2054.5,1.77384093]
[1773147992301,1.76530166,2055.4,2054.6,0.55703085]
[1773147992502,1.76527744,2055.4,2054.6,0.55703085]
[1773147993297,0.54896089,2055.3,2054.7,1.21672263]
[1773147995423,1.21642662,2055.2,2054.7,1.21672263]
[1773147995630,1.21634063,2055.4,2054.7,1.21672263]
[1773147995829,0.54648775,2055.6,2054.8,0.54184068]
[1773147997103,3.58961416,2055.7,2054.6,1.75861775]
[1773147997104,0.54648775,2055.3,2054.6,1.75861775]
[1773147997638,0.54648775,2055.3,2054.7,0.02081841]
[1773147997817,1.21642662,2055.2,2054.7,1.23753877]
[1773147998014,1.21642662,2055.2,2054.7,1.2375009]
[1773147998322,1.21642662,2055.2,2054.7,1.26539009]
[1773147998708,1.21642662,2055.2,2054.7,1.21672119]
[1773148000039,1.21642662,2055.2,2054.7,1.26539009]
[1773148000404,1.76291437,2055.2,2054.7,1.21672119]
[1773148000725,1.21640499,2055.3,2054.8,0.59050721]
[1773148001066,4.58562345,2055.8,2054.9,0.54184068]
[1773148001239,0.54648775,2056.0,2055.1,0.54184068]
[1773148002009,1.7625002,2055.9,2055.2,1.21642662]
[1773148002315,0.54648775,2055.8,2055.2,1.21642662]
[1773148002931,0.54648775,2055.8,2055.1,1.75832634]
[1773148003140,1.7624851,2056.0,2055.2,0.54184068]
[1773148003313,1.21790772,2056.1,2055.2,0.54184068]
[1773148003638,0.002,2055.9,2055.2,0.54184068]
[1773148004041,0.002,2055.9,2055.3,1.75820812]
[1773148005105,0.54848775,2055.9,2055.3,0.54184068]
[1773148005312,0.54848775,2055.9,2055.2,1.21642133]
[1773148005546,0.54848775,2055.9,2055.1,1.75827935]
[1773148005751,0.54848775,2055.9,2055.1,1.80347097]
[1773148005957,1.2160716,2055.8,2055.1,1.80347097]
[1773148006117,1.76393014,2055.8,2055.1,1.75827935]
[1773148006727,1.76393014,2055.8,2055.1,0.54184068]
[1773148007020,1.76393014,2055.8,2054.9,1.77275339]
[1773148007224,0.54785854,2055.7,2054.9,1.77275339]
[1773148008028,9.89550505,2055.9,2054.9,1.21758059]
[1773148008029,1.21630826,2055.4,2054.9,1.21758059]
[1773148009311,1.21630826,2055.4,2054.9,0.001]
[1773148009538,1.21630826,2055.4,2054.9,1.21759707]
[1773148010107,0.54785854,2055.5,2054.9,0.001]
[1773148012153,1.21630826,2055.4,2054.9,0.001]
[1773148012912,0.54785854,2055.2,2054.9,0.001]
[1773148013232,0.54785854,2055.2,2054.4,1.7730591]
[1773148013440,0.54785854,2055.2,2054.4,1.82173511]
[1773148013640,0.54785854,2055.2,2054.4,1.7730591]
[1773148013935,0.54785854,2055.2,2054.5,0.04867364]
[1773148014138,1.21648581,2055.1,2054.4,1.7730591]
[1773148014445,1.21648581,2055.1,2054.4,1.82173511]
[1773148014650,0.54785854,2055.0,2054.4,1.77308535]
[1773148014822,0.54785854,2055.0,2054.4,1.82176136]
[1773148015028,0.54785854,2054.9,2054.1,1.21805406]
[1773148015344,0.54785854,2054.6,2054.1,0.001]
[1773148015925,0.54785854,2054.6,2054.1,1.21807093]
[1773148016134,1.21684108,2054.5,2054.1,1.21807093]
[1773148016336,0.54785854,2054.8,2054.1,1.21807093]
[1773148016649,1.7644406,2055.0,2054.2,0.55518665]
[1773148016823,0.54785854,2055.0,2054.3,0.60386503]
[1773148017023,2.79852315,2055.1,2054.3,0.60386503]
[1773148017223,2.9159653,2054.9,2054.3,0.001]
[1773148017939,0.54785854,2054.8,2054.3,0.001]
[1773148019662,1.76444891,2055.0,2054.3,0.55618665]
[1773148020366,0.54785854,2055.0,2054.3,0.55618665]
[1773148020726,1.76440841,2055.0,2054.3,0.55618665]
[1773148021146,1.21651502,2055.1,2054.3,0.55618665]
[1773148021350,4.13243694,2055.2,2054.3,0.55618665]
[1773148021557,1.7642857,2055.2,2054.5,0.55518665]
[1773148021927,1.7642857,2055.2,2054.6,0.55518665]
[1773148023156,0.54785854,2055.2,2054.6,0.55518665]
[1773148023452,0.54785854,2055.1,2054.4,1.21690031]
[1773148023656,0.59652744,2055.1,2054.4,1.21690031]
[1773148024056,0.54851096,2054.9,2054.3,1.77310102]
[1773148024263,0.0486689,2054.8,2054.3,1.77310102]
[1773148025340,0.59717986,2054.8,2054.3,1.21791437]
[1773148026072,0.59717986,2054.8,2054.3,0.001]
[1773148027156,1.8138542,2054.8,2054.3,0.001]
[1773148027586,0.59717986,2054.8,2054.3,0.60529944]
[1773148027882,7.23445097,2055.0,2054.3,0.60529944]
[1773148027883,0.54851096,2055.0,2054.3,0.60529944]
[1773148028042,0.54851096,2055.0,2054.4,1.77252137]
[1773148028244,0.0486689,2055.1,2054.5,0.6042947]
[1773148028546,1.76489089,2055.3,2054.5,0.6042947]
[1773148028844,0.0486689,2055.2,2054.5,0.6042947]
[1773148029165,0.0486689,2055.2,2054.5,0.55562106]
[1773148029584,0.0486689,2055.2,2054.5,0.6042947]
[1773148031981,1.26510052,2055.2,2054.6,1.77240291]
[1773148032187,0.54851096,2055.3,2054.7,0.0486689]
[1773148032188,1.76488423,2055.3,2054.7,0.0486689]
[1773148032348,0.0486689,2055.2,2054.7,0.0486689]
[1773148032548,0.0486689,2055.2,2054.6,1.77240291]
[1773148032549,0.002,2054.9,2054.6,1.77240291]
[1773148033078,0.0486689,2055.2,2054.7,0.60428996]
[1773148033381,0.55051096,2055.6,2054.8,0.55562106]
[1773148033610,0.002,2055.4,2054.8,0.55562106]
[1773148033965,0.002,2055.4,2054.9,1.21660421]
[1773148034278,0.55051096,2055.4,2054.9,1.21660421]
[1773148035703,0.55051096,2055.4,2054.9,1.77222527]
[1773148037289,0.54851096,2055.3,2054.9,1.21660421]
[1773148038007,0.002,2055.4,2054.9,1.21660421]
[1773148038209,0.002,2055.4,2054.9,1.77222527]
[1773148038408,0.002,2055.6,2055.0,0.55562106]
[1773148038578,0.54851096,2055.9,2055.0,0.55562106]
[1773148038778,0.54851096,2055.8,2055.1,1.77210687]
[1773148039203,0.54851096,2055.8,2055.2,0.55562106]
[1773148039600,0.54851096,2055.8,2055.1,1.21648581]
[1773148039799,0.54851096,2055.7,2055.0,1.77214472]
[1773148040112,0.54851096,2055.7,2054.8,1.77224875]
[1773148040318,0.54851096,2055.7,2054.9,0.55562106]
[1773148040983,1.76470088,2055.6,2055.0,1.21654501]
[1773148041183,0.54851096,2055.5,2055.0,1.21654501]
[1773148041384,0.54851096,2055.5,2054.9,1.77220979]
[1773148042619,0.54851096,2055.4,2054.6,1.77235285]
[1773148043078,1.7648784,2055.3,2054.6,1.77235285]
[1773148045515,0.54851096,2055.2,2054.6,1.77235285]
[1773148046684,0.54851096,2055.2,2054.6,1.77335285]
[1773148047207,0.55051096,2055.2,2054.6,1.21778123]
[1773148047382,0.54851096,2055.1,2054.6,0.001]
[1773148047584,0.54851096,2055.1,2054.6,0.55662106]
[1773148047788,0.54851096,2055.1,2054.6,0.60529233]
[1773148048416,0.54851096,2055.1,2054.6,0.55662106]
[1773148048622,0.54851096,2055.1,2054.6,0.001]
[1773148049615,0.54851096,2055.1,2054.6,0.04967127]
[1773148050418,0.54851096,2055.1,2054.6,0.60529233]
[1773148051018,0.002,2055.2,2054.6,0.60529233]
[1773148051690,0.002,2055.2,2054.8,0.55562106]
[1773148051893,0.002,2055.2,2054.9,0.60428522]
[1773148052095,0.002,2055.4,2054.9,0.60428522]
[1773148052705,0.002,2055.4,2054.9,0.55562106]
[1773148053808,0.002,2055.4,2055.0,1.76319625]
[1773148054194,0.002,2055.4,2055.1,0.54665124]
[1773148054828,0.002,2055.4,2055.0,1.21654501]
[1773148056524,0.002,2055.4,2054.9,5.41283128]
[1773148057335,0.002,2055.4,2054.9,4.86618004]
[1773148057499,0.002,2055.4,2055.0,0.54665124]
[1773148059023,0.002,2055.4,2055.1,1.21648581]
[1773148061520,0.002,2055.4,2055.1,1.21748581]
[1773148061719,0.002,2055.2,2055.1,1.21748581]
[1773148062514,0.002,2055.2,2055.1,0.001]
[1773148064527,0.56382079,2055.8,2055.2,0.54665124]
[1773148064706,0.56382079,2055.8,2055.1,0.001]
[1773148065630,0.56382079,2055.6,2055.1,0.001]
[1773148066227,0.56382079,2055.6,2055.2,0.59771846]
[1773148066396,1.21607684,2055.8,2055.2,0.59771846]
[1773148066602,0.57254102,2055.7,2055.1,0.001]
[1773148067716,0.57254102,2055.5,2055.1,0.001]
[1773148068119,1.2159423,2056.1,2055.1,0.59871846]
[1773148068320,0.57254102,2056.0,2055.1,0.59871846]
[1773148069715,0.57254102,2055.9,2055.3,1.21636744]
[1773148069915,0.57254102,2055.9,2055.3,1.8140859]
[1773148070117,0.57254102,2055.9,2055.4,0.59771846]
[1773148070618,0.57254102,2055.9,2055.4,0.64637079]
[1773148070823,0.57254102,2055.9,2055.4,0.59771846]
[1773148071026,0.57254102,2055.9,2055.3,1.21636744]
[1773148071417,0.57254102,2055.9,2055.2,0.59771846]
[1773148071629,0.57254102,2055.8,2055.2,1.21642283]
[1773148072139,1.78865882,2055.8,2055.1,4.8667396]
[1773148072310,0.57254102,2055.7,2055.1,5.46445806]
[1773148074825,0.57254102,2055.6,2055.1,1.81520427]
[1773148075835,0.57254102,2055.6,2055.3,0.001]
[1773148077344,0.57254102,2055.5,2055.3,0.001]
[1773148078014,0.57254102,2055.7,2055.3,0.001]
[1773148079535,0.002,2055.8,2055.3,0.59871846]
[1773148079844,1.21808528,2055.8,2055.3,0.59871846]
[1773148080326,1.7906263,2055.8,2055.3,0.59871846]
[1773148081447,0.002,2055.8,2055.4,0.64637079]
[1773148081617,0.57254102,2056.0,2055.6,0.59771846]
[1773148081817,0.57254102,2056.2,2055.6,0.59771846]
[1773148082641,1.51933736,2055.7,2055.3,1.21736158]
[1773148082833,0.57254102,2055.7,2055.3,1.26601627]
[1773148083029,1.51933736,2055.9,2055.3,1.86373473]
[1773148084446,1.76985514,2055.8,2055.3,1.86373473]
[1773148084624,0.55378354,2055.8,2055.3,1.86373473]
[1773148087834,0.55378354,2056.0,2055.4,0.57519633]
[1773148088143,0.55378354,2056.2,2055.4,0.57519633]
[1773148088929,0.55378354,2056.2,2055.5,0.57519633]
[1773148089521,0.55378354,2056.4,2055.7,0.57519633]
[1773148090146,1.76941991,2056.6,2055.7,0.57519633]
[1773148090449,1.50057988,2056.5,2055.7,0.57519633]
[1773148090654,0.55378354,2056.4,2055.7,0.57519633]
[1773148091220,2.97847905,2056.7,2055.7,0.57519633]
[1773148091221,2.03170338,2056.7,2055.8,0.57519633]
[1773148091450,1.36990159,2056.7,2055.8,0.57519633]
[1773148091631,1.36990159,2056.7,2056.0,0.57519633]
[1773148092132,0.002,2056.2,2056.0,0.57519633]
[1773148092334,0.81611805,2056.7,2056.0,0.57519633]
[1773148093643,0.81611805,2056.7,2055.7,0.57519633]
[1773148093644,0.55378354,2056.5,2055.7,0.57519633]
[1773148094647,0.55378354,2056.5,2055.7,0.62384156]
[1773148096066,1.36990159,2056.7,2055.9,0.57519633]
[1773148096368,0.81611805,2056.7,2055.9,0.57519633]
[1773148096731,2.0316749,2056.7,2055.9,0.57519633]
[1773148097058,0.81611805,2056.7,2055.9,0.57519633]
[1773148097560,1.36990159,2056.7,2055.9,0.57519633]
[1773148097858,1.36990159,2056.7,2055.9,0.62383682]
[1773148098061,0.81611805,2056.7,2056.1,0.57519633]
[1773148098266,0.55378354,2057.4,2056.4,0.57519633]
[1773148098561,0.55378354,2057.4,2056.5,0.57519633]
[1773148098940,0.55378354,2057.6,2056.5,0.57519633]
[1773148099133,0.55378354,2057.5,2056.6,0.57519633]
[1773148100227,1.76888326,2057.5,2056.8,0.57519633]
[1773148100461,0.55378354,2057.5,2056.8,0.57519633]
[1773148100835,1.21505221,2057.6,2056.8,0.57519633]
[1773148101032,5.41369983,2057.7,2056.8,0.57519633]
[1773148101033,1.76878033,2057.7,2056.8,0.57519633]
[1773148101449,0.55378354,2057.9,2056.8,0.57519633]